bitfinex/quotes_SOLUSD_20220307
["timestamp","ask_amount","ask_price","bid_price","bid_amount"]
[1646645178205,6.064,82.481,82.401,22.6698]
[1646645179407,6.064,82.483,82.401,22.6698]
[1646645180710,6.064,82.483,82.401,40.6242]
[1646645183310,59.63267305,82.484,82.401,40.6242]
[1646645184313,6.064,82.483,82.401,40.6242]
[1646645184714,6.064,82.483,82.41,18.1994]
[1646645184914,6.064,82.483,82.411,145.3107]
[1646645185116,6.064,82.485,82.411,145.3107]
[1646645185816,49.45648194,82.484,82.412,59.98194953]
[1646645186017,6.064,82.483,82.412,59.98194953]
[1646645194140,27.1039888,82.482,82.412,59.98194953]
[1646645194340,18.2055,82.48,82.412,59.98194953]
[1646645194541,6.064,82.479,82.412,59.98194953]
[1646645194740,33.1679888,82.479,82.412,59.98194953]
[1646645196142,6.064,82.479,82.412,59.98194953]
[1646645196543,6.064,82.48,82.412,59.98194953]
[1646645198644,6.064,82.481,82.412,59.98194953]
[1646645200146,6.064,82.482,82.412,59.98194953]
[1646645200649,6.064,82.483,82.412,59.98194953]
[1646645202149,6.064,82.483,82.413,120.4]
[1646645202550,49.45648194,82.484,82.413,120.4]
[1646645205454,49.45648194,82.484,82.412,59.98194953]
[1646645205655,6.064,82.483,82.412,59.98194953]
[1646645207254,6.064,82.483,82.413,120.4]
[1646645207453,49.45648194,82.484,82.413,120.4]
[1646645208855,49.45648194,82.484,82.412,59.98194953]
[1646645209655,6.064,82.483,82.412,59.98194953]
[1646645209956,6.064,82.483,82.413,120.4]
[1646645210657,1.64085121,82.494,82.421,120.4]
[1646645210858,1.64085121,82.502,82.421,120.4]
[1646645211062,1.64085121,82.504,82.423,120.4]
[1646645211270,6.063,82.503,82.423,120.4]
[1646645211460,1.64085121,82.508,82.423,120.4]
[1646645211664,1.64085121,82.508,82.423,149.92801284]
[1646645211860,1.64085121,82.508,82.442,120.4]
[1646645212060,6.062,82.509,82.451,120.4]
[1646645212259,27.1039888,82.528,82.452,0.18060249]
[1646645212460,1.64085121,82.536,82.453,120.4]
[1646645212658,1.64085121,82.538,82.455,120.4]
[1646645212857,6.059,82.537,82.455,120.4]
[1646645213059,6.059,82.547,82.457,120.4]
[1646645213259,6.059,82.547,82.471,181.24672322]
[1646645213458,52.49681434,82.548,82.473,120.4]
[1646645213661,6.059,82.549,82.473,120.4]
[1646645213858,6.059,82.553,82.473,120.4]
[1646645214259,6.059,82.554,82.473,120.4]
[1646645214758,61.68225439,82.554,82.481,120.4]
[1646645214960,6.059,82.553,82.48,32.8616]
[1646645215860,27.1039888,82.552,82.48,32.8616]
[1646645216059,6.059,82.551,82.48,14.68]
[1646645216459,27.1039888,82.55,82.472,23.3418]
[1646645216659,6.059,82.549,82.472,23.3418]
[1646645217060,27.1039888,82.548,82.472,23.3418]
[1646645217259,6.059,82.547,82.472,23.3418]
[1646645217459,27.1039888,82.548,82.472,23.3418]
[1646645217661,27.1039888,82.546,82.472,23.3418]
[1646645218160,6.059,82.545,82.472,23.3418]
[1646645218562,27.1039888,82.544,82.472,23.3418]
[1646645218764,6.059,82.543,82.472,23.3418]
[1646645219362,27.1039888,82.542,82.472,23.3418]
[1646645219562,6.059,82.541,82.472,23.3418]
[1646645220364,6.059,82.541,82.473,120.4]
[1646645220564,61.68225439,82.554,82.473,120.4]
[1646645220763,61.68225439,82.554,82.473,149.92801284]
[1646645221764,61.68225439,82.554,82.473,120.4]
[1646645222164,61.68225439,82.554,82.48,18.183]
[1646645222367,61.68225439,82.554,82.481,120.4]
[1646645223166,61.68225439,82.554,82.49,18.1809]
[1646645224288,6.058,82.553,82.49,18.1809]
[1646645226289,6.058,82.553,82.482,23.3832]
[1646645227390,49.7144888,82.552,82.473,0.0939602]
[1646645227590,6.059,82.551,82.473,0.0939602]
[1646645227791,0.18495951,82.549,82.473,0.0939602]
[1646645227992,18.1919,82.54,82.473,0.0939602]
[1646645228190,28.6695,82.539,82.473,0.0939602]
[1646645228591,27.1039888,82.538,82.473,0.0939602]
[1646645228789,29.2403,82.537,82.473,0.0939602]
[1646645229592,23.1813,82.537,82.473,0.0939602]
[1646645233495,6.059,82.536,82.473,0.0939602]
[1646645236098,23.1813,82.537,82.473,0.0939602]
[1646645239104,6.059,82.536,82.473,0.0939602]
[1646645239904,23.1813,82.537,82.473,0.0939602]
[1646645241004,23.1813,82.537,82.472,18.2752]
[1646645243908,23.1813,82.537,82.473,120.4]
[1646645245816,23.1813,82.537,82.481,120.4]
[1646645246117,23.1813,82.537,82.483,120.4]
[1646645247020,23.1813,82.537,82.482,61.10982188]
[1646645247218,23.1813,82.537,82.483,120.4]
[1646645248717,6.059,82.553,82.49,18.1806]
[1646645248919,6.059,82.553,82.5,14.68]
[1646645249119,1.64085121,82.568,82.501,120.4]
[1646645249318,1.64085121,82.569,82.503,120.4]
[1646645249520,23.3782,82.574,82.503,120.4]
[1646645249521,1.64085121,82.572,82.503,120.4]
[1646645249819,51.44470645,82.571,82.51,18.1753]
[1646645250019,51.44470645,82.571,82.511,55.94183321]
[1646645250641,51.44470645,82.571,82.512,22.9741]
[1646645254945,6.057,82.57,82.512,22.9741]
[1646645256946,51.44470645,82.571,82.512,22.9741]
[1646645257545,51.44470645,82.571,82.511,55.94183321]
[1646645259548,51.44470645,82.571,82.494,22.6011]
[1646645259753,1.64085121,82.569,82.494,22.6011]
[1646645259949,78.54869525,82.571,82.494,22.6011]
[1646645259950,1.64085121,82.567,82.494,22.6011]
[1646645260151,6.058,82.566,82.494,41.0796]
[1646645260350,1.64085121,82.565,82.494,41.0796]
[1646645260550,6.058,82.564,82.495,62.62599091]
[1646645260749,7.69885121,82.564,82.495,62.62599091]
[1646645260950,23.3171,82.563,82.495,62.62599091]
[1646645261150,6.058,82.562,82.495,62.62599091]
[1646645261751,23.3171,82.563,82.501,120.4]
[1646645262152,24.5376,82.57,82.501,120.4]
[1646645262355,6.057,82.574,82.503,120.4]
[1646645262551,1.64085121,82.581,82.505,120.4]
[1646645262850,1.64085121,82.581,82.504,22.5837]
[1646645263050,6.057,82.58,82.504,22.5837]
[1646645263252,1.64085121,82.575,82.504,22.5837]
[1646645263451,1.64085121,82.566,82.504,22.5837]
[1646645263652,6.058,82.565,82.504,22.5837]
[1646645264055,6.058,82.567,82.504,22.5837]
[1646645264253,1.64085121,82.57,82.504,22.5837]
[1646645264653,1.64085121,82.569,82.504,22.5837]
[1646645265453,6.057,82.568,82.504,22.5837]
[1646645265856,6.057,82.578,82.505,6.057]
[1646645266856,1.64085121,82.573,82.504,22.5837]
[1646645267055,6.057,82.572,82.504,22.5837]
[1646645268057,1.64085121,82.569,82.504,22.5837]
[1646645268256,6.057,82.568,82.504,22.5837]
[1646645268656,6.057,82.572,82.504,22.5837]
[1646645269857,7.69785121,82.572,82.504,22.5837]
[1646645270257,1.64085121,82.57,82.504,22.5837]
[1646645270458,6.057,82.569,82.504,22.5837]
[1646645270658,1.64085121,82.568,82.504,22.5837]
[1646645270859,6.057,82.567,82.504,22.5837]
[1646645271458,7.69785121,82.567,82.504,22.5837]
[1646645272258,6.057,82.567,82.504,22.5837]
[1646645272458,7.69785121,82.567,82.504,22.5837]
[1646645272661,6.057,82.567,82.504,22.5837]
[1646645273261,7.69785121,82.567,82.504,22.5837]
[1646645273460,1.64085121,82.564,82.504,22.5837]
[1646645275164,1.64085121,82.563,82.504,22.5837]
[1646645275362,1.64085121,82.56,82.504,22.5837]
[1646645275763,1.64085121,82.56,82.496,6.057]
[1646645276164,1.64085121,82.558,82.495,62.62599091]
[1646645276766,57.16773991,82.554,82.495,62.62599091]
[1646645277167,57.16773991,82.554,82.5,14.68]
[1646645277366,57.16773991,82.554,82.501,120.4]
[1646645277566,57.16773991,82.554,82.5,14.68]
[1646645278566,57.16773991,82.554,82.5,9.68]
[1646645279469,1.64085121,82.563,82.5,9.68]
[1646645279669,1.64085121,82.568,82.501,6.058]
[1646645279969,1.64085121,82.568,82.502,149.02905053]
[1646645280173,1.64085121,82.582,82.502,149.02905053]
[1646645280474,45.75986536,82.591,82.504,120.4]
[1646645280670,45.75986536,82.591,82.506,120.4]
[1646645280871,45.75986536,82.591,82.523,120.4]
[1646645281071,45.75986536,82.591,82.53,14.68]
[1646645281270,45.75986536,82.591,82.531,6.056]
[1646645282873,6.056,82.59,82.53,14.68]
[1646645287398,45.75986536,82.591,82.53,14.68]
[1646645287997,45.75986536,82.591,82.531,6.056]
[1646645288698,7.69685121,82.59,82.523,24.6096]
[1646645288897,1.64085121,82.585,82.523,24.6096]
[1646645289097,7.69685121,82.584,82.523,24.6096]
[1646645289900,1.64085121,82.583,82.523,24.6096]
[1646645290100,6.056,82.582,82.523,24.6096]
[1646645290500,7.69685121,82.582,82.523,24.6096]
[1646645290700,6.056,82.582,82.523,24.6096]
[1646645290902,24.1303,82.589,82.523,24.6096]
[1646645291108,24.1303,82.589,82.523,53.23865053]
[1646645291502,6.056,82.588,82.523,53.23865053]
[1646645292405,6.056,82.588,82.523,24.6096]
[1646645297607,1.64085121,82.586,82.523,24.6096]
[1646645297811,7.69685121,82.585,82.523,24.6096]
[1646645298006,6.056,82.585,82.523,24.6096]
[1646645298406,6.056,82.586,82.523,24.6096]
[1646645299508,1.64085121,82.588,82.523,24.6096]
[1646645299907,7.69685121,82.587,82.523,24.6096]
[1646645301312,1.64085121,82.586,82.523,24.6096]
[1646645301511,6.056,82.585,82.523,24.6096]
[1646645301709,7.69685121,82.585,82.523,24.6096]
[1646645301910,1.64085121,82.584,82.523,24.6096]
[1646645302114,6.056,82.583,82.523,24.6096]
[1646645302411,6.056,82.584,82.523,24.6096]
[1646645302811,7.69685121,82.584,82.523,24.6096]
[1646645303410,1.64085121,82.581,82.523,24.6096]
[1646645303611,6.056,82.58,82.523,24.6096]
[1646645303811,6.056,82.581,82.523,24.6096]
[1646645304212,6.056,82.582,82.523,24.6096]
[1646645304721,1.64085121,82.584,82.523,24.6096]
[1646645304912,1.64085121,82.584,82.523,145.0096]
[1646645305113,1.64085121,82.583,82.523,145.0096]
[1646645305313,1.64085121,82.584,82.523,145.0096]
[1646645305513,24.1303,82.589,82.523,145.0096]
[1646645307513,25.77115121,82.589,82.523,145.0096]
[1646645307713,24.1303,82.589,82.523,145.0096]
[1646645308513,49.38270025,82.588,82.523,145.0096]
[1646645308914,1.64085121,82.587,82.523,24.6096]
[1646645309515,1.64085121,82.584,82.523,24.6096]
[1646645309715,1.64085121,82.58,82.523,24.6096]
[1646645309915,1.64085121,82.579,82.523,24.6096]
[1646645310115,1.64085121,82.581,82.523,24.6096]
[1646645310315,6.056,82.58,82.523,24.6096]
[1646645310717,24.2681,82.579,82.523,24.6096]
[1646645311516,25.90895121,82.579,82.523,24.6096]
[1646645312717,1.64085121,82.578,82.523,24.6096]
[1646645313920,7.69685121,82.578,82.523,24.6096]
[1646645315823,6.056,82.578,82.523,24.6096]
[1646645316223,7.69685121,82.578,82.523,24.6096]
[1646645316623,6.056,82.578,82.523,24.6096]
[1646645317723,24.2681,82.579,82.523,24.6096]
[1646645323430,6.056,82.578,82.523,24.6096]
[1646645324834,6.056,82.578,82.518,57.68564278]
[1646645324835,1.64085121,82.574,82.518,57.68564278]
[1646645325029,24.2681,82.579,82.518,57.68564278]
[1646645325030,1.64085121,82.57,82.518,57.68564278]
[1646645325230,1.64085121,82.568,82.518,57.68564278]
[1646645325430,7.69785121,82.569,82.518,57.68564278]
[1646645325631,1.64085121,82.569,82.518,57.68564278]
[1646645325934,23.2135,82.568,82.518,57.68564278]
[1646645326130,24.85435121,82.568,82.518,57.68564278]
[1646645327333,23.2135,82.568,82.518,57.68564278]
[1646645334136,23.2135,82.568,82.518,75.51804278]
[1646645334436,1.64085121,82.574,82.521,120.4]
[1646645334638,1.64085121,82.582,82.521,120.4]
[1646645334837,24.36025121,82.585,82.521,120.4]
[1646645335040,6.056,82.584,82.521,120.4]
[1646645335839,7.69685121,82.584,82.521,120.4]
[1646645336040,22.7194,82.585,82.52,14.68]
[1646645336241,22.7194,82.585,82.521,120.4]
[1646645336741,1.64085121,82.589,82.521,120.4]
[1646645336942,1.64085121,82.591,82.523,120.4]
[1646645337344,1.64085121,82.593,82.523,120.4]
[1646645337744,1.64085121,82.597,82.531,120.4]
[1646645337945,1.64085121,82.597,82.54,14.68]
[1646645338147,1.64085121,82.598,82.541,144.266]
[1646645338446,1.64085121,82.607,82.541,144.266]
[1646645338647,1.64085121,82.607,82.543,120.4]
[1646645338846,1.64085121,82.607,82.545,120.4]
[1646645339046,1.64085121,82.608,82.56,14.68]
[1646645339446,1.64085121,82.609,82.56,14.68]
[1646645339647,22.7349,82.611,82.56,14.68]
[1646645339847,30.42975121,82.611,82.56,14.68]
[1646645340051,22.7349,82.611,82.56,14.68]
[1646645340246,28.7889,82.611,82.56,14.68]
[1646645340463,22.7349,82.611,82.56,14.68]
[1646645346966,6.054,82.619,82.561,120.4]
[1646645347166,6.054,82.62,82.563,120.4]
[1646645347366,47.51933038,82.621,82.563,120.4]
[1646645349567,47.51933038,82.621,82.563,138.2836]
[1646645349767,47.51933038,82.621,82.563,17.8836]
[1646645349966,47.51933038,82.621,82.562,23.873]
[1646645350166,56.6006888,82.62,82.562,23.873]
[1646645350567,27.1039888,82.619,82.562,23.873]
[1646645350767,6.053,82.618,82.562,23.873]
[1646645352366,23.4437,82.62,82.562,23.873]
[1646645354667,6.053,82.619,82.562,23.873]
[1646645354871,120.4,82.618,82.53,14.68]
[1646645355067,120.71587753,82.616,82.531,23.1271]
[1646645355270,0.31587753,82.613,82.531,23.1271]
[1646645355468,0.31587753,82.611,82.531,23.1271]
[1646645355671,6.055,82.61,82.532,56.42813028]
[1646645356071,27.1039888,82.611,82.532,56.42813028]
[1646645356270,30.4564,82.61,82.532,56.42813028]
[1646645357269,48.6334,82.61,82.532,56.42813028]
[1646645358871,27.1039888,82.609,82.53,14.68]
[1646645359071,0.31820323,82.599,82.503,23.68905053]
[1646645359271,0.3461179,82.596,82.504,24.3068]
[1646645359670,1.98696911,82.596,82.504,24.3068]
[1646645359871,50.97401432,82.595,82.522,55.43392573]
[1646645360071,6.056,82.594,82.522,55.43392573]
[1646645360271,18.1809,82.59,82.522,55.43392573]
[1646645360472,6.056,82.589,82.522,55.43392573]
[1646645360673,0.3461179,82.588,82.508,18.5686]
[1646645360873,0.3461179,82.586,82.508,18.5686]
[1646645361076,0.3461179,82.584,82.508,18.5686]
[1646645361373,0.3461179,82.582,82.508,18.5686]
[1646645361572,6.056,82.581,82.52,52.41269707]
[1646645361772,6.056,82.584,82.52,52.41269707]
[1646645361972,6.056,82.585,82.52,52.41269707]
[1646645362372,6.056,82.585,82.521,46.4281]
[1646645362973,24.1137,82.586,82.521,46.4281]
[1646645366977,6.056,82.585,82.521,46.4281]
[1646645373389,6.056,82.585,82.45,98.36801869]
[1646645373390,120.4,82.579,82.46,18.1854]
[1646645373589,120.4,82.577,82.48,14.68]
[1646645373792,120.4,82.575,82.481,23.632]
[1646645373991,120.4,82.573,82.481,47.32105053]
[1646645374189,120.4,82.571,82.482,57.76971767]
[1646645374389,24.2655,82.574,82.482,57.76971767]
[1646645374390,0.50391413,82.568,82.482,81.4587682]
[1646645374591,120.4,82.566,82.483,23.68905053]
[1646645374790,0.50391413,82.565,82.483,23.68905053]
[1646645374992,126.458,82.564,82.483,23.68905053]
[1646645375290,0.50391413,82.563,82.483,23.68905053]
[1646645375491,6.058,82.562,82.483,23.68905053]
[1646645375691,0.50391413,82.561,82.482,57.76971767]
[1646645375891,6.059,82.56,82.482,57.76971767]
[1646645376090,0.50391413,82.561,82.482,57.76971767]
[1646645376292,0.50391413,82.559,82.482,57.76971767]
[1646645376490,6.059,82.558,82.482,57.76971767]
[1646645376698,6.059,82.562,82.482,57.76971767]
[1646645376890,0.50391413,82.561,82.482,57.76971767]
[1646645377093,24.2471,82.56,82.482,57.76971767]
[1646645377491,0.50391413,82.559,82.482,57.76971767]
[1646645377690,6.059,82.558,82.482,57.76971767]
[1646645377899,0.50391413,82.557,82.482,57.76971767]
[1646645378093,18.1881,82.56,82.482,57.76971767]
[1646645378094,0.50391413,82.558,82.482,57.76971767]
[1646645378291,18.1881,82.56,82.482,57.76971767]
[1646645378492,18.1881,82.56,82.482,81.5361021]
[1646645378893,24.2655,82.564,82.483,120.4]
[1646645379093,6.058,82.563,82.483,128.1740989]
[1646645379294,6.058,82.563,82.491,120.4]
[1646645379495,24.2655,82.564,82.5,14.68]
[1646645379894,24.2655,82.564,82.501,23.76638443]
[1646645382119,24.2655,82.564,82.502,120.4]
[1646645382318,6.058,82.584,82.502,120.4]
[1646645382518,6.058,82.584,82.503,144.7919]
[1646645382519,30.0036,82.584,82.503,144.7919]
[1646645383319,57.91252487,82.583,82.503,24.3919]
[1646645384121,57.91252487,82.583,82.503,144.7919]
[1646645384518,57.91252487,82.583,82.503,24.3919]
[1646645384720,6.057,82.582,82.503,24.3919]
[1646645386521,57.91252487,82.583,82.503,24.3919]
[1646645388024,57.91252487,82.583,82.503,23.8919]
[1646645389324,6.057,82.582,82.503,23.8919]
[1646645389923,1.64085121,82.574,82.503,23.8919]
[1646645390125,120.4,82.581,82.503,23.8919]
[1646645390126,6.057,82.573,82.503,23.8919]
[1646645390324,22.7053,82.572,82.503,23.8919]
[1646645390527,6.057,82.571,82.503,23.8919]
[1646645391726,18.1854,82.57,82.503,23.8919]
[1646645391929,6.057,82.569,82.549,0.09429815]
[1646645393932,18.1854,82.57,82.549,0.09429815]
[1646645396833,120.4,82.568,82.549,0.09429815]
[1646645397234,120.4,82.566,82.549,0.09429815]
[1646645397434,126.456,82.565,82.549,0.09429815]
[1646645400440,6.056,82.565,82.549,0.09429815]
[1646645400638,6.056,82.569,82.549,0.09429815]
[1646645400939,22.7053,82.572,82.549,0.09429815]
[1646645402942,6.056,82.571,82.549,0.09429815]
[1646645403340,6.056,82.571,82.5,17.55476319]
[1646645404039,22.7053,82.572,82.501,120.4]
[1646645405841,22.7053,82.572,82.495,47.84808443]
[1646645406044,22.7053,82.572,82.495,24.0817]
[1646645406441,14.68,82.57,82.495,24.0817]
[1646645406639,6.058,82.569,82.495,24.0817]
[1646645407841,120.4,82.568,82.495,24.0817]
[1646645408057,6.058,82.567,82.495,24.0817]
[1646645408242,6.058,82.569,82.495,24.0817]
[1646645408642,6.32812846,82.566,82.495,24.0817]
[1646645408841,6.058,82.565,82.495,24.0817]
[1646645410547,6.32812846,82.566,82.495,24.0817]
[1646645413949,6.058,82.565,82.495,24.0817]
[1646645415152,18.1877,82.56,82.495,24.0817]
[1646645415371,174.37608932,82.558,82.495,24.0817]
[1646645415571,120.4,82.556,82.495,24.0817]
[1646645415775,6.058,82.555,82.482,57.76971767]
[1646645415971,22.7367,82.557,82.468,22.6143]
[1646645415972,6.059,82.556,82.468,22.6143]
[1646645416172,18.1901,82.55,82.468,22.6143]
[1646645416375,6.059,82.549,82.468,22.6143]
[1646645416573,0.19582822,82.546,82.46,23.7335]
[1646645416872,1.64085121,82.546,82.461,22.6143]
[1646645417071,120.4,82.544,82.461,22.6143]
[1646645417273,120.4,82.542,82.461,22.6143]
[1646645417471,1.64085121,82.539,82.461,22.6143]
[1646645417671,120.4,82.537,82.461,22.6143]
[1646645417872,120.4,82.535,82.461,22.6143]
[1646645418073,120.4,82.531,82.461,22.6143]
[1646645418376,0.2009031,82.528,82.461,22.6143]
[1646645418673,0.2009031,82.525,82.461,22.6143]
[1646645418871,6.059,82.524,82.461,22.6143]
[1646645419071,120.4,82.528,82.461,22.6143]
[1646645419274,120.4,82.526,82.461,22.6143]
[1646645419472,126.459,82.525,82.461,22.6143]
[1646645419873,6.059,82.525,82.461,22.6143]
[1646645420076,6.059,82.529,82.461,22.6143]
[1646645420274,6.059,82.529,82.443,18.0123]
[1646645420673,40.9323,82.53,82.468,49.58739372]
[1646645421674,40.9323,82.53,82.444,23.4348]
[1646645422178,120.4,82.529,82.444,23.4348]
[1646645422375,18.1978,82.52,82.444,23.4348]
[1646645422575,29.2711,82.519,82.444,23.4348]
[1646645422778,29.2711,82.519,82.445,48.64853937]
[1646645423384,120.4,82.518,82.445,48.64853937]
[1646645423578,18.1986,82.51,82.445,48.64853937]
[1646645423779,120.4,82.509,82.444,23.4348]
[1646645423979,6.062,82.508,82.444,23.4348]
[1646645424179,6.062,82.508,82.426,24.1687623]
[1646645424180,120.4,82.508,82.426,24.1687623]
[1646645424379,23.2101,82.519,82.426,24.1687623]
[1646645424380,29.2721,82.507,82.427,138.6925]
[1646645424580,29.2721,82.507,82.427,162.8612623]
[1646645424780,58.25382328,82.506,82.428,54.64819035]
[1646645424983,18.201,82.5,82.427,138.6925]
[1646645425181,120.4,82.499,82.427,138.6925]
[1646645425382,120.4,82.497,82.411,24.3532]
[1646645425582,14.68,82.5,82.411,24.3532]
[1646645425583,120.4,82.495,82.412,24.6707]
[1646645425984,120.4,82.493,82.413,58.54737512]
[1646645426384,120.4,82.491,82.413,58.54737512]
[1646645426582,120.4,82.489,82.413,58.54737512]
[1646645426782,6.064,82.488,82.413,58.54737512]
[1646645426984,6.064,82.492,82.413,58.54737512]
[1646645427183,18.2033,82.49,82.413,58.54737512]
[1646645427383,6.064,82.489,82.413,58.54737512]
[1646645427983,120.4,82.488,82.413,58.54737512]
[1646645428183,120.4,82.486,82.412,24.6707]
[1646645428382,126.464,82.485,82.412,24.6707]
[1646645428585,120.4,82.479,82.412,24.6707]
[1646645428785,120.4,82.477,82.412,24.6707]
[1646645429184,120.4,82.475,82.4,50.0]
[1646645429386,120.4,82.473,82.4,50.0]
[1646645429583,6.065,82.474,82.4,50.0]
[1646645429584,120.4,82.469,82.4,50.0]
[1646645429884,120.4,82.467,82.4,50.0]
[1646645430085,14.68,82.47,82.4,50.0]
[1646645430086,120.4,82.465,82.4,50.0]
[1646645430283,120.4,82.463,82.4,50.0]
[1646645430684,120.4,82.461,82.4,50.0]
[1646645430887,23.2341,82.469,82.4,50.0]
[1646645430888,120.4,82.459,82.4,50.0]
[1646645431088,6.065,82.458,82.4,50.0]
[1646645431287,29.2991,82.459,82.4,50.0]
[1646645432687,12.66818465,82.458,82.4,50.0]
[1646645432986,6.065,82.457,82.4,50.0]
[1646645433186,18.2124,82.45,82.4,50.0]
[1646645433388,6.066,82.449,82.4,50.0]
[1646645433886,47.05706855,82.448,82.4,50.0]
[1646645434088,6.066,82.447,82.4,50.0]
[1646645435190,120.4,82.439,82.4,50.0]
[1646645435390,120.4,82.437,82.4,1.70825242]
[1646645435590,120.4,82.433,82.354,18.5272]
[1646645435990,6.067,82.432,82.354,18.5272]
[1646645436192,120.4,82.431,82.354,18.5272]
[1646645436390,120.4,82.429,82.352,24.0022]
[1646645436591,22.5584511,82.434,82.352,24.0022]
[1646645436592,120.4,82.427,82.352,24.0022]
[1646645436792,120.4,82.425,82.352,24.0022]
[1646645436993,6.067,82.424,82.352,24.0022]
[1646645437391,120.4,82.425,82.354,57.67510577]
[1646645437592,6.067,82.424,82.354,57.67510577]
[1646645437792,120.4,82.423,82.352,24.0022]
[1646645437993,120.4,82.423,82.346,24.0007]
[1646645437994,18.2217,82.41,82.346,24.0007]
[1646645438193,6.069,82.409,82.346,24.0007]
[1646645438394,120.4,82.408,82.346,24.0007]
[1646645438694,120.4,82.406,82.346,24.0007]
[1646645438894,171.81781613,82.405,82.346,24.0007]
[1646645439292,51.41781613,82.405,82.346,24.0007]
[1646645439492,171.81781613,82.405,82.346,24.0007]
[1646645439694,51.41781613,82.405,82.346,24.0007]
[1646645439893,23.7612,82.42,82.346,24.0007]
[1646645440198,23.7612,82.42,82.358,7.7740989]
[1646645440595,23.7612,82.42,82.362,7.7740989]
[1646645440795,53.39104299,82.419,82.363,49.68671711]
[1646645441619,6.067,82.418,82.347,23.5402]
[1646645444896,53.39104299,82.419,82.347,23.5402]
[1646645445096,53.39104299,82.419,82.358,55.36651987]
[1646645445298,53.39104299,82.419,82.347,23.5402]
[1646645445497,6.067,82.418,82.328,6.067]
[1646645445696,6.067,82.418,82.263,366.38492676]
[1646645445697,126.20010203,82.417,82.313,18.4528]
[1646645445901,126.20010203,82.417,82.302,53.1891]
[1646645445902,120.4,82.415,82.302,53.1891]
[1646645446197,120.4,82.415,82.302,71.6079]
[1646645446198,0.2674212,82.414,82.302,71.6079]
[1646645446499,120.6674212,82.412,82.303,45.64804222]
[1646645446696,6.071,82.411,82.304,120.4]
[1646645446899,6.071,82.418,82.305,6.071]
[1646645447096,6.071,82.418,82.321,120.4]
[1646645447299,6.071,82.418,82.324,174.48707883]
[1646645447497,6.071,82.418,82.326,120.4]
[1646645447697,6.071,82.418,82.33,14.68]
[1646645447899,6.071,82.418,82.331,30.4684]
[1646645449003,6.071,82.418,82.332,21.31747149]
[1646645449224,6.071,82.418,82.333,6.069]
[1646645449625,23.7612,82.42,82.333,6.069]
[1646645449827,6.069,82.434,82.334,120.4]
[1646645450034,30.6027,82.449,82.344,120.4]
[1646645450224,30.6027,82.449,82.351,120.4]
[1646645450628,81.85291967,82.449,82.353,120.4]
[1646645450828,6.069,82.449,82.353,120.4]
[1646645451027,6.067,82.477,82.371,120.4]
[1646645451226,24.5337,82.476,82.38,14.68]
[1646645451429,6.065,82.475,82.39,14.68]
[1646645451630,24.5337,82.476,82.391,24.7694]
[1646645451826,48.78840856,82.475,82.392,57.38929225]
[1646645453528,48.78840856,82.475,82.473,0.04714907]
[1646645453728,6.062,82.474,82.473,0.04714907]
[1646645454528,48.78840856,82.475,82.473,0.04714907]
[1646645455342,0.0406886,82.472,82.392,57.38929225]
[1646645455529,18.2087,82.47,82.392,57.38929225]
[1646645455931,6.065,82.469,82.392,57.38929225]
[1646645456133,6.065,82.469,82.391,24.7694]
[1646645456331,120.4,82.468,82.391,24.7694]
[1646645456532,120.4,82.466,82.391,24.7694]
[1646645456734,126.465,82.465,82.391,24.7694]